bitfinex/quotes_ETHUSD_20240730
["timestamp","ask_amount","ask_price","bid_price","bid_amount"]
[1722297891844,1.53151159,3323.6,3323.5,3.6407505]
[1722297892104,1.53151159,3323.6,3323.5,0.6318805]
[1722297892234,1.53151159,3323.6,3323.4,0.300905]
[1722297892421,1.53151159,3323.5,3323.4,0.300905]
[1722297892621,1.53151159,3323.6,3323.4,0.300905]
[1722297892822,1.53151159,3323.5,3323.4,0.300905]
[1722297893038,2.4742531,3323.7,3323.4,0.300905]
[1722297893224,1.53151159,3323.6,3323.4,0.300905]
[1722297894148,2.4742531,3323.6,3323.4,0.300905]
[1722297894335,1.53151159,3323.5,3323.4,0.300905]
[1722297896054,1.56711898,3323.5,3323.4,0.300905]
[1722297896225,4.57599898,3323.5,3322.7,8.34195]
[1722297896550,3.00915,3323.2,3322.7,8.34193]
[1722297896748,1.53151159,3323.1,3322.3,3.00996]
[1722297896950,3.95294801,3322.9,3322.2,2.2588]
[1722297897166,4.54103159,3322.8,3322.2,5.26883]
[1722297897345,1.53151159,3322.7,3322.2,5.26884]
[1722297897546,2.51066919,3322.7,3322.2,5.26884]
[1722297897731,1.53151159,3322.6,3322.5,3.00978]
[1722297898443,1.56719118,3322.6,3322.5,3.00978]
[1722297899197,1.56719118,3322.6,3322.3,0.827892]
[1722297899328,1.56719118,3322.6,3322.3,3.837842]
[1722297899329,1.53151159,3322.5,3322.3,3.837842]
[1722297899764,0.0356011,3322.4,3322.3,3.837842]
[1722297900426,0.94347801,3322.8,3322.3,3.837842]
[1722297900622,3.00969,3322.6,3321.9,3.01027]
[1722297900823,1.5318921,3322.5,3322.0,6.01023]
[1722297901067,3.04545598,3322.4,3321.8,3.01038]
[1722297901277,1.5318921,3322.3,3321.9,0.810768]
[1722297901561,4.5418621,3322.3,3321.7,2.4343]
[1722297901763,4.5775118,3322.2,3321.6,3.01058]
[1722297901966,4.5420421,3322.1,3321.4,3.01071]
[1722297902158,4.5420421,3322.1,3320.8,3.94503526]
[1722297902159,1.5318921,3322.0,3320.8,3.94503526]
[1722297902340,3.01084,3321.4,3320.7,0.023216]
[1722297902557,3.0113,3320.9,3320.7,0.023216]
[1722297902737,1.5318921,3320.8,3320.7,0.023216]
[1722297903272,1.56731733,3320.8,3320.7,0.023216]
[1722297905173,0.03542523,3320.8,3320.7,0.023216]
[1722297905373,3.01123,3320.9,3320.7,0.023216]
[1722297905601,3.01111,3321.1,3320.7,0.023216]
[1722297905920,1.53280547,3321.0,3320.7,0.023216]
[1722297906069,4.57864287,3321.0,3320.7,0.023216]
[1722297906273,4.54405716,3320.9,3320.7,0.023216]
[1722297906467,3.01126,3320.9,3320.7,0.023216]
[1722297906777,0.0346274,3320.8,3320.7,0.023216]
[1722297907162,3.01116,3321.0,3320.7,0.023216]
[1722297907366,0.0346274,3320.8,3320.7,0.023216]
[1722297907566,3.01132,3320.8,3320.7,0.023216]
[1722297907769,6.0572674,3320.8,3320.7,0.023216]
[1722297908067,7.59022688,3320.8,3320.7,0.023216]
[1722297908281,6.0572674,3320.8,3320.7,0.023216]
[1722297908507,6.72321554,3320.8,3320.7,0.023216]
[1722297908707,3.71189554,3320.8,3320.7,0.023216]
[1722297909121,6.0572674,3320.8,3320.7,0.023216]
[1722297909413,3.0459474,3320.8,3320.7,0.023216]
[1722297909894,6.0572674,3320.8,3320.7,0.023216]
[1722297911980,3.0459474,3320.8,3320.7,0.023216]
[1722297912277,6.0572674,3320.8,3320.7,0.023216]
[1722297912471,6.66299414,3320.8,3320.7,0.023216]
[1722297913628,9.05309414,3320.8,3320.7,0.023216]
[1722297913848,12.06441414,3320.8,3320.7,0.023216]
[1722297914261,12.05309414,3320.8,3320.7,0.023216]
[1722297914559,15.06441414,3320.8,3320.7,0.023216]
[1722297915304,12.05309414,3320.8,3320.7,0.023216]
[1722297916014,6.0459474,3320.8,3320.7,0.023216]
[1722297916289,9.0572674,3320.8,3320.7,0.023216]
[1722297917202,6.0459474,3320.8,3320.7,0.023216]
[1722297917401,9.0572674,3320.8,3320.7,0.023216]
[1722297919698,12.0685874,3320.8,3320.7,0.023216]
[1722297919905,13.27544614,3320.8,3320.7,0.023216]
[1722297920275,21.72426614,3320.8,3320.7,0.023216]
[1722297920474,19.26294614,3320.8,3320.7,0.023216]
[1722297920677,22.27426614,3320.8,3320.7,0.023216]
[1722297921396,16.08994614,3320.8,3320.7,0.023216]
[1722297922907,12.52862614,3320.8,3320.7,0.023216]
[1722297923719,15.53994614,3320.8,3320.7,0.023216]
[1722297924214,12.52862614,3320.8,3320.7,0.023216]
[1722297924707,15.53994614,3320.8,3320.7,0.023216]
[1722297924923,12.52862614,3320.8,3320.7,0.023216]
[1722297925259,6.0572674,3320.8,3320.7,0.023216]
[1722297925714,0.0346274,3320.8,3320.7,0.023216]
[1722297926076,3.0459474,3320.8,3320.7,0.023216]
[1722297926479,0.0346274,3320.8,3320.7,0.023216]
[1722297926819,3.01123,3320.9,3320.7,0.023216]
[1722297927118,6.05501061,3320.8,3320.7,0.023216]
[1722297928326,9.06633061,3320.8,3320.7,0.023216]
[1722297929668,6.05501061,3320.8,3320.7,0.023216]
[1722297930283,9.06633061,3320.8,3320.7,0.023216]
[1722297930516,6.05501061,3320.8,3320.7,0.023216]
[1722297930727,6.66051167,3320.8,3320.7,0.023216]
[1722297931024,9.67183167,3320.8,3320.7,0.023216]
[1722297931514,12.67183167,3320.8,3320.7,0.023216]
[1722297931826,12.72836415,3320.8,3320.7,0.023216]
[1722297932395,13.27836415,3320.8,3320.7,0.023216]
[1722297932701,16.45136415,3320.8,3320.7,0.023216]
[1722297932913,24.92880415,3320.8,3320.7,0.023216]
[1722297933523,24.92880415,3320.8,3318.3,2.663]
[1722297933524,3.01294,3319.1,3318.6,2.3366]
[1722297933734,10.543,3319.6,3318.4,0.00179994]
[1722297934035,0.08893459,3319.0,3318.4,0.00179994]
[1722297934172,3.01294,3319.1,3318.4,0.00179994]
[1722297934375,3.10191229,3318.9,3318.4,0.00179994]
[1722297934623,3.01261,3319.4,3318.4,0.00179994]
[1722297934774,0.08880229,3318.8,3318.4,0.00179994]
[1722297934976,3.01311,3318.9,3318.4,0.00179994]
[1722297935301,0.08880229,3318.7,3318.5,3.01333]
[1722297935628,0.08851243,3318.8,3318.6,5.45051]
[1722297935787,3.01278,3319.2,3318.6,2.4372]
[1722297935994,0.08807137,3318.7,3318.6,2.4372]
[1722297936319,0.08807137,3318.7,3318.6,3.28378299]
[1722297936503,3.01267,3319.4,3318.7,3.01321]
[1722297936687,3.10075137,3319.3,3318.7,3.01321]
[1722297936878,3.10075137,3319.3,3318.6,3.28378299]
[1722297937234,3.10075137,3319.3,3318.7,3.01322]
[1722297937441,3.10075137,3319.3,3318.6,2.4372]
[1722297937442,3.01297,3319.0,3318.6,2.4372]
[1722297937600,0.08812494,3318.9,3318.6,2.4372]
[1722297938031,3.10117494,3318.9,3318.6,2.4372]
[1722297938644,0.08812494,3318.9,3318.6,2.4372]
[1722297938853,3.01291,3319.1,3318.6,2.4372]
[1722297939141,3.10118004,3319.0,3318.6,2.4372]
[1722297939352,3.01304,3318.9,3318.6,2.4372]
[1722297939550,0.08821004,3319.0,3318.6,2.4372]
[1722297939715,3.01295,3319.0,3318.6,2.4372]
[1722297939916,0.08821004,3318.9,3318.6,2.4372]
[1722297940306,3.10126004,3318.9,3318.6,2.4372]
[1722297940520,3.01323,3318.7,3318.4,0.00179994]
[1722297940839,6.01256,3319.5,3318.4,3.01521994]
[1722297940840,0.08815647,3318.6,3318.4,3.01521994]
[1722297941049,3.01306,3318.9,3318.4,0.00179994]
[1722297941241,3.10129647,3318.8,3318.4,0.00179994]
[1722297941815,0.08815647,3318.8,3318.4,0.00179994]
[1722297942018,3.01295,3319.0,3318.4,0.00179994]
[1722297942219,0.0881344,3318.9,3318.4,0.00179994]
[1722297942436,0.0881344,3318.9,3318.4,3.01526994]
[1722297942641,0.0881344,3318.9,3318.4,3.85359893]
[1722297943075,3.1011744,3318.9,3318.4,0.00179994]
[1722297943367,0.0881344,3318.9,3318.4,0.00179994]
[1722297943527,0.0881344,3318.9,3318.4,3.01529994]
[1722297943724,3.01286,3319.1,3318.4,3.01529994]
[1722297943968,0.0881344,3318.8,3318.4,3.01529994]
[1722297944128,3.0127,3319.3,3318.6,3.0133]
[1722297944333,0.0881344,3318.7,3318.6,3.0133]
[1722297944575,3.01296,3319.0,3318.4,0.00179994]
[1722297944880,3.1011844,3318.9,3318.4,0.00179994]
[1722297945285,0.0881344,3318.9,3318.4,0.00179994]
[1722297945491,3.01288,3319.1,3318.5,3.01338]
[1722297945641,3.1010844,3319.0,3318.4,0.00179994]
[1722297946345,3.01305,3318.9,3318.4,0.00179994]
[1722297946773,0.0881785,3318.8,3318.4,0.00179994]
[1722297948293,0.0881785,3318.8,3318.4,3.01528994]
[1722297948448,3.01295,3319.0,3318.4,3.01528994]
[1722297948640,0.08812808,3318.9,3318.4,3.01528994]
[1722297948942,0.08812808,3318.9,3318.5,3.01333]
[1722297949172,0.08812808,3318.9,3318.4,0.00179994]
[1722297949486,0.08809028,3318.8,3318.4,3.01527994]
[1722297949647,3.01306,3318.9,3318.4,0.00179994]
[1722297949848,0.08809028,3318.8,3318.4,0.00179994]
[1722297950356,3.10123028,3318.8,3318.4,0.00179994]
[1722297950982,3.01328,3318.7,3318.4,0.00179994]
[1722297951489,0.08809971,3318.6,3318.4,0.00179994]
[1722297951668,3.01329,3318.7,3318.4,0.00179994]
[1722297951872,0.08809971,3318.6,3318.4,0.00179994]
[1722297952071,0.31012697,3318.6,3318.4,0.00179994]
[1722297952401,6.11489971,3318.5,3318.4,0.00179994]
[1722297952645,7.64892401,3318.5,3318.4,0.00179994]
[1722297952845,6.11489971,3318.5,3318.4,0.00179994]
[1722297952979,7.64900777,3318.5,3318.4,0.00179994]
[1722297953185,10.66240777,3318.5,3318.4,0.00179994]
[1722297953489,3.01414,3317.7,3317.3,0.1454528]
[1722297953715,3.0144,3317.4,3317.3,0.1454528]
[1722297954023,3.01429,3317.6,3317.3,0.1454528]
[1722297954320,3.0144,3317.4,3317.3,0.1454528]
[1722297954485,3.10212463,3317.4,3317.3,0.1454528]
[1722297954985,0.08772463,3317.4,3317.3,0.1454528]
[1722297955306,3.10212463,3317.4,3317.3,0.1454528]
[1722297955497,0.08772463,3317.4,3317.3,0.1454528]
[1722297955828,10.38368,3318.2,3317.4,2.4623]
[1722297955829,7.37,3318.2,3317.4,2.4623]
[1722297956026,7.37,3318.2,3317.7,3.01413]
[1722297956262,0.08721372,3318.1,3317.7,3.01413]
[1722297956731,0.08721372,3318.1,3317.8,3.01403]
[1722297956934,0.08721372,3318.1,3318.0,3.01386]
[1722297957227,0.08721372,3318.1,3317.8,2.4623]
[1722297957541,0.0874156,3318.0,3317.8,2.4623]
[1722297957846,0.0874156,3318.0,3317.9,3.01395]
[1722297958045,0.0874156,3318.0,3317.8,3.009935]
[1722297958046,3.01307,3318.9,3318.1,3.01371]
[1722297958354,3.01328,3318.7,3317.9,3.01389]
[1722297958497,3.0132,3318.8,3317.9,3.01394]
[1722297958698,3.0132,3318.8,3318.2,3.01368]
[1722297958898,3.01306,3318.9,3318.2,3.01368]
[1722297959142,3.01323,3318.7,3317.8,5.47633]
[1722297959639,0.602595,3318.9,3317.8,2.4623]
[1722297959640,3.615695,3318.9,3317.8,2.4623]
[1722297959945,3.01313,3318.8,3318.2,3.01367]
[1722297960331,3.0128,3319.2,3318.3,3.01355]
[1722297960541,3.01292,3319.1,3318.4,3.01344]
[1722297960847,3.01292,3319.1,3318.5,3.01339]
[1722297961140,3.01292,3319.1,3318.3,3.01353]
[1722297961441,3.01292,3319.1,3318.4,3.01342]
[1722297961761,3.01295,3319.0,3318.3,0.602717]
[1722297962043,3.01295,3319.0,3318.4,3.01349]
[1722297963909,7.37,3319.4,3318.6,3.01326]
[1722297964107,7.37,3319.4,3318.7,3.01315]
[1722297964310,10.38265,3319.4,3318.7,3.01315]
[1722297964619,10.38265,3319.4,3318.7,2.960493]
[1722297965049,3.01268,3319.3,3318.7,2.960493]
[1722297965210,7.37,3319.4,3318.5,5.4513]
[1722297965411,7.37,3319.4,3318.7,3.0132]
[1722297965629,10.38265,3319.4,3318.7,3.0132]
[1722297966562,3.01269,3319.3,3318.6,0.54513]
[1722297966857,3.01278,3319.2,3318.6,0.54513]
[1722297967158,7.37,3319.4,3318.8,3.01309]
[1722297967341,3.0,3319.6,3318.8,3.01309]
[1722297967554,3.01259,3319.4,3318.6,3.55844]
[1722297968160,3.01259,3319.4,3318.7,3.01321]
[1722297968337,3.01288,3319.1,3318.6,0.54513]
[1722297968534,3.01274,3319.3,3318.6,0.54513]
[1722297968736,3.0128,3319.2,3318.6,0.54513]
[1722297968975,3.0128,3319.2,3318.5,5.45126]
[1722297969767,3.01261,3319.4,3318.6,3.01325]
[1722297969930,3.01268,3319.3,3318.6,3.01325]
[1722297970383,3.01278,3319.2,3318.6,3.01325]
[1722297970948,3.01278,3319.2,3318.5,5.45127]
[1722297971155,0.0878402,3319.1,3318.5,5.45127]
[1722297971553,0.0878402,3319.1,3318.5,6.297746]
[1722297971749,0.0878402,3319.1,3318.7,3.01319]
[1722297972291,0.0878402,3319.0,3318.5,6.297726]
[1722297972594,3.01282,3319.2,3318.5,5.45125]
[1722297972753,0.0878402,3318.9,3318.5,5.45125]
[1722297973093,0.08783707,3318.8,3318.5,5.45125]
[1722297973234,3.01282,3319.2,3318.5,5.45125]
[1722297973435,0.08783707,3319.1,3318.5,5.45125]
[1722297974375,0.08783707,3319.1,3318.6,3.0133]
[1722297975066,3.10078707,3319.1,3318.5,2.4379]
[1722297975435,3.10078707,3319.1,3318.5,5.45129]
[1722297975640,3.10078707,3319.1,3318.5,2.4379]
[1722297976078,3.01306,3318.9,3318.5,2.4379]
[1722297976287,0.08784019,3318.8,3318.5,2.4379]
[1722297977494,0.93694931,3319.7,3319.4,3.01259]
[1722297977779,4.57362218,3320.0,3319.4,5.28089]
[1722297977780,0.08487763,3319.6,3319.4,5.28089]
[1722297977936,0.08487763,3319.6,3319.5,3.0125]
[1722297978143,0.93694931,3320.0,3319.6,3.01241]
[1722297978449,1.53329616,3319.9,3319.5,3.01249]
[1722297978653,1.53329616,3319.9,3319.6,3.01239]
[1722297978847,1.53329616,3319.9,3319.8,3.01222]
[1722297979068,0.93694931,3320.2,3319.9,3.01213]
[1722297979363,0.93694931,3320.5,3319.9,3.01213]
[1722297979542,2.05286306,3320.4,3319.7,3.01224]
[1722297979753,1.53308555,3320.3,3319.8,3.01219]
[1722297980190,1.53308555,3320.3,3319.9,3.01213]
[1722297980555,0.51977751,3320.4,3320.0,3.01204]
[1722297980759,0.93694931,3320.6,3320.0,3.01204]
[1722297980961,1.53308087,3320.5,3320.0,3.01204]
[1722297981255,0.93694931,3320.8,3320.2,3.01184]
[1722297981457,1.53298175,3320.7,3320.3,3.01177]
[1722297981659,1.16304958,3320.8,3320.3,3.01177]
[1722297982455,1.16304958,3320.8,3320.3,2.96177]
[1722297983064,0.93694931,3321.0,3320.3,2.96177]
[1722297983272,0.93694931,3321.1,3320.4,3.01165]
[1722297983471,3.01087,3321.3,3320.4,0.06023199]
[1722297983769,3.01087,3321.3,3320.7,3.0114]
[1722297983994,0.301087,3321.2,3320.7,3.0114]
[1722297985174,10.38061,3321.6,3320.7,3.0114]
[1722297985806,3.01084,3321.4,3320.7,3.0114]
[1722297986353,0.08307114,3321.3,3320.7,3.0114]
[1722297986495,0.08307114,3321.3,3320.8,3.0113]
[1722297986712,10.38061,3321.6,3320.8,3.0113]
[1722297986867,1.12116696,3321.5,3320.8,5.40531507]
[1722297987183,1.12116696,3321.5,3321.1,3.01098]
[1722297987184,0.08310596,3321.5,3321.1,3.01098]
[1722297987383,0.08310596,3321.5,3320.9,3.01118]
[1722297987725,0.08310596,3321.5,3320.8,2.39401937]
[1722297987870,3.01047,3321.8,3321.1,3.01104]
[1722297988172,0.08051676,3321.7,3321.1,3.01104]
[1722297988370,0.30909868,3321.6,3320.9,3.01122]
[1722297988610,3.0106,3321.6,3320.9,3.01122]
[1722297988912,7.37,3322.0,3320.8,2.39401935]
[1722297988913,0.08051676,3321.5,3321.2,3.01088]
[1722297989072,7.37,3322.0,3321.4,3.01077]
[1722297989267,1.11863939,3321.9,3321.2,3.01088]
[1722297989506,1.11863939,3321.9,3321.5,3.01067]
[1722297989890,1.11863939,3321.9,3321.3,3.01083]
[1722297990918,1.11863939,3321.9,3321.4,3.01075]
[1722297991669,0.08062439,3321.9,3321.5,3.01059]
[1722297991917,0.08062439,3321.9,3321.6,3.01052]
[1722297992214,3.01005,3322.2,3321.6,3.01052]
[1722297992381,0.08104214,3321.8,3321.6,3.01052]
[1722297992586,3.01005,3322.2,3321.6,3.01052]
[1722297992797,0.08104214,3321.7,3321.5,2.3136]
[1722297992977,3.01023,3322.0,3321.5,2.3136]
[1722297993506,0.08106744,3321.9,3321.5,2.3136]
[1722297995477,3.09139744,3321.9,3321.5,2.3136]
[1722297995722,0.08106744,3321.9,3321.5,2.3136]
[1722297995928,0.30912174,3321.9,3321.5,2.3136]
[1722297996119,0.08110858,3321.8,3321.5,5.32427]
[1722297996479,3.01013,3322.2,3321.5,5.32427]
[1722297996813,0.08111491,3322.1,3321.6,3.01059]
[1722297997181,0.08111491,3322.1,3321.7,3.01049]
[1722297997609,0.08111491,3322.1,3321.5,5.32428]
[1722297997610,3.00988,3322.4,3321.8,3.01035]
[1722297997816,0.08111174,3322.0,3321.8,3.01035]
[1722297998126,0.08111174,3321.9,3321.8,3.01035]
[1722297998326,0.375,3322.5,3321.9,3.01027]
[1722297998540,0.08112754,3322.4,3321.9,3.01027]
[1722297999796,3.09099754,3322.4,3321.9,3.01027]
[1722297999995,3.35657975,3322.3,3321.7,3.0105]
[1722298000196,0.34659975,3322.3,3321.6,3.07078338]
[1722298000428,0.08124778,3322.2,3321.7,3.01044]
[1722298000634,0.08124778,3322.2,3321.8,3.0104]
[1722298001143,0.08124778,3322.1,3321.8,3.0104]
[1722298001433,0.34659975,3322.3,3321.8,3.0104]
[1722298001434,3.35655975,3322.3,3321.8,3.0104]
[1722298001595,0.08124778,3322.0,3321.8,3.0104]
[1722298001789,0.33565598,3322.2,3321.8,3.0104]
[1722298002027,0.08124778,3321.9,3321.8,3.0104]
[1722298002243,0.375,3322.5,3322.0,3.01022]
[1722298002434,0.08124778,3321.9,3321.6,3.01053]
[1722298002591,3.38478,3322.5,3321.6,3.01053]
[1722298002792,3.38478,3322.5,3321.7,3.01046]
[1722298002793,3.00998,3322.3,3321.7,3.01046]
[1722298004640,0.338478,3322.4,3321.8,0.06020308]
[1722298004842,0.338478,3322.4,3322.0,3.01014]
[1722298004993,0.375,3322.5,3322.1,3.01014]
[1722298005209,0.375,3322.5,3322.4,3.00987]
[1722298005440,0.375,3322.5,3322.4,6.01974]
[1722298006678,0.375,3322.5,3322.4,11.31241]
[1722298006959,0.375,3322.5,3322.4,14.31241]
[1722298007942,0.375,3322.5,3322.4,11.30254]
[1722298008125,0.375,3322.5,3322.4,8.29267]
[1722298008339,0.375,3322.5,3322.4,11.30254]
[1722298009450,0.375,3322.5,3322.4,8.29267]
[1722298010937,0.375,3322.5,3322.4,5.2828]
[1722298011176,0.45694667,3322.5,3322.4,2.2828]
[1722298011486,0.45694667,3322.5,3322.0,3.01021]
[1722298011640,0.375,3322.5,3322.1,3.0]
[1722298011843,0.08194351,3322.4,3322.1,3.0]
[1722298012550,0.08194351,3322.4,3322.1,6.01013]
[1722298013256,0.08194351,3322.4,3322.1,3.0]
[1722298013597,0.08194351,3322.4,3322.0,6.01017]
[1722298014491,0.08194351,3322.4,3322.0,4.143367]
[1722298014706,0.08194351,3322.4,3322.3,3.00996]
[1722298014858,0.375,3322.5,3322.4,3.00987]
[1722298015042,0.375,3322.5,3322.4,3.0700556]
[1722298016396,0.375,3322.5,3322.1,3.01014]
[1722298016752,0.08192134,3322.4,3322.1,3.01014]
[1722298017174,0.08192134,3322.4,3322.2,3.01003]
[1722298017690,0.08192134,3322.4,3322.1,3.01014]
[1722298018078,0.375,3322.5,3322.1,3.01014]
[1722298018258,0.08202251,3322.3,3322.1,3.01014]
[1722298018458,0.375,3322.5,3322.1,3.01014]
[1722298018680,0.08202251,3322.2,3322.1,3.01014]
[1722298018855,0.375,3322.5,3322.1,6.01014]
[1722298019352,0.375,3322.5,3321.5,2.3531]
[1722298019353,3.0102,3322.1,3321.5,2.3531]
[1722298019562,0.08194031,3322.0,3321.5,5.3637]
[1722298019871,0.08194031,3322.0,3321.6,3.01054]
[1722298020090,3.00999,3322.3,3321.6,3.01054]
[1722298020377,3.552149,3322.2,3321.5,5.3637]
[1722298020570,3.63393441,3322.2,3321.5,5.3637]
[1722298021273,3.63393441,3322.2,3321.6,3.01052]
[1722298021470,0.62388441,3322.2,3321.7,3.01049]
[1722298021672,0.08178541,3322.2,3321.7,3.01049]
[1722298022061,3.01032,3321.9,3321.3,3.01083]
[1722298022255,3.01042,3321.8,3321.2,3.01095]
[1722298022457,3.01042,3321.8,3321.1,2.4626]
[1722298022458,3.01051,3321.7,3321.1,2.4626]
[1722298022653,3.0106,3321.6,3320.8,5.47386]
[1722298022856,3.01088,3321.3,3320.7,3.01139]
[1722298023112,0.30921293,3321.5,3320.8,3.01131]
[1722298023113,3.40147588,3321.5,3320.8,3.01131]
[1722298023270,0.08143755,3321.2,3320.8,3.01131]
[1722298023605,2.4894,3322.1,3321.4,3.01077]
[1722298023953,2.4894,3322.1,3321.2,3.0109]
[1722298023954,3.01033,3321.9,3321.2,3.0109]
[1722298024107,0.301033,3321.8,3320.6,2.663]
[1722298024314,3.01078,3321.4,3320.8,3.01127]
[1722298024608,3.01096,3321.2,3320.7,3.0]
[1722298025108,3.01065,3321.6,3320.8,3.01132]
[1722298025312,3.01047,3321.8,3321.1,3.01104]
[1722298025461,3.0106,3321.6,3321.0,3.01107]
[1722298025664,3.311505,3321.8,3321.1,3.01104]
[1722298025894,3.311505,3321.8,3320.9,3.01119]
[1722298025895,0.301035,3321.8,3320.9,3.01119]
[1722298026098,3.01056,3321.7,3320.9,3.01119]
[1722298026277,3.01056,3321.7,3321.1,3.01104]
[1722298026910,3.0106,3321.6,3320.9,3.01116]
[1722298027110,3.0106,3321.6,3321.0,3.01114]
[1722298028096,3.01041,3321.8,3321.0,3.01114]
[1722298028343,3.311541,3321.7,3321.1,3.01103]
[1722298029741,3.01059,3321.6,3320.9,3.01123]
[1722298029948,0.301041,3321.7,3320.4,2.4626]
[1722298030112,3.01111,3321.1,3320.4,5.47428]
[1722298030447,1.53298089,3321.0,3320.0,3.01196]
[1722298030657,1.53298089,3320.9,3319.7,3.01228]
[1722298030799,3.01166,3320.5,3319.6,3.01235]
[1722298030996,3.83468089,3320.8,3319.6,3.01235]
[1722298030997,3.01184,3320.3,3319.6,3.01235]
[1722298031198,3.01192,3320.2,3319.3,3.01264]
[1722298031499,3.01184,3320.3,3319.4,3.01257]
[1722298031500,3.01204,3320.0,3319.4,3.01257]
[1722298031722,0.08091554,3320.1,3319.6,3.01234]
[1722298031944,0.08074151,3319.9,3319.6,3.01234]
[1722298032244,0.08074151,3319.8,3319.7,3.01231]
[1722298032594,3.01152,3320.6,3319.9,3.01206]
[1722298032803,3.01152,3320.6,3319.8,0.06023708]
[1722298032804,0.08074151,3320.5,3319.8,0.06023708]
[1722298033002,0.08074151,3320.5,3320.1,3.0119]
[1722298034065,0.08074151,3320.5,3319.7,3.01226]
[1722298034224,0.08074151,3320.5,3319.6,3.01238]
[1722298034225,3.01192,3320.2,3319.6,3.01238]
[1722298034613,0.08035215,3320.1,3319.6,3.01238]
[1722298036306,0.08035215,3320.1,3319.7,3.01231]
[1722298036508,0.08035215,3320.1,3319.2,2.3952]
[1722298036509,0.08035215,3320.1,3319.8,3.01216]
[1722298036755,3.01168,3320.5,3319.8,3.01216]
[1722298036924,3.01177,3320.3,3319.8,3.01216]
[1722298037266,3.01187,3320.2,3319.6,3.01234]
[1722298037447,3.09208915,3320.2,3319.6,3.01234]
[1722298037790,3.01205,3320.0,3319.4,3.01256]
[1722298037929,0.08021915,3320.2,3319.4,3.01256]
[1722298037930,0.301205,3319.9,3319.4,3.01256]
[1722298038132,3.01197,3320.1,3319.5,3.0125]
[1722298038336,3.01197,3320.1,3319.2,5.40795]
[1722298038337,3.01206,3320.0,3319.3,3.0126]
[1722298038665,3.09226015,3320.0,3319.3,3.0126]
[1722298038864,0.08020015,3320.0,3319.3,3.01266]
[1722298039253,3.0119,3320.2,3319.3,3.01266]
[1722298039543,3.09228632,3319.9,3319.3,3.01266]
[1722298039736,3.01238,3319.7,3319.0,3.01291]
[1722298039938,3.09260315,3319.6,3318.2,2.4358]
[1722298040140,3.0125,3319.5,3318.8,3.01307]
[1722298040541,3.09274665,3319.4,3318.6,3.0133]
[1722298040876,0.61052467,3319.3,3318.4,3.01342]
[1722298041177,3.01295,3319.1,3318.4,3.01342]
[1722298041338,3.01296,3319.0,3318.2,5.44947]
[1722298041533,3.0127,3319.3,3318.2,2.4358]
[1722298041777,0.07978842,3318.9,3318.3,0.06025949]
[1722298041935,3.01234,3319.7,3319.0,3.01293]
[1722298042270,0.38102242,3319.6,3319.0,3.01293]
[1722298042882,3.39345242,3319.6,3318.8,3.01313]
[1722298043298,3.39345242,3319.6,3318.9,3.01304]
[1722298045185,0.38102242,3319.6,3319.0,3.01295]
[1722298045717,0.07978842,3319.6,3319.1,0.06025482]
[1722298045917,0.07978842,3319.6,3319.5,3.0125]
[1722298046215,2.3885,3320.4,3319.6,3.0124]
[1722298046596,5.40018,3320.4,3319.7,3.01225]
[1722298046817,2.3885,3320.4,3319.9,3.01213]
[1722298047023,0.54001,3320.3,3319.9,3.01213]
[1722298047185,3.0116,3320.5,3319.9,3.01213]
[1722298047386,3.0116,3320.5,3319.8,0.06024157]
[1722298047726,5.44934,3320.7,3320.0,3.01203]
[1722298047906,3.01166,3320.5,3319.7,6.02456]
[1722298048092,3.01174,3320.4,3319.8,0.06023841]
[1722298048282,3.61408,3320.4,3319.8,0.06023841]
[1722298048485,0.60234,3320.4,3319.8,3.07244841]
[1722298048702,3.01166,3320.5,3319.8,3.07244841]
[1722298050145,3.01169,3320.4,3319.8,3.01221]
[1722298050355,3.01186,3320.3,3319.3,3.0126]
[1722298050559,3.01186,3320.3,3319.0,2.4531]
[1722298050560,3.01196,3320.1,3319.4,3.01257]
[1722298050835,3.01179,3320.3,3319.3,3.01261]
[1722298051044,0.24379,3320.6,3319.4,3.01254]
[1722298051045,3.01202,3320.1,3319.4,3.01254]
[1722298051254,0.301202,3320.0,3319.4,3.01254]
[1722298051393,3.01191,3320.2,3319.6,3.01235]
[1722298051754,3.01163,3320.5,3319.1,0.81161]
[1722298051755,3.01163,3320.5,3319.8,3.01222]
[1722298052543,3.01192,3320.2,3319.6,3.01234]
[1722298052903,0.24379,3320.6,3319.8,3.01222]
[1722298052904,3.01175,3320.4,3319.8,3.01222]
[1722298053117,0.24379,3320.6,3319.7,0.06024149]
[1722298053450,3.0116,3320.5,3319.9,3.01206]
[1722298054669,0.24379,3320.6,3319.5,3.0]
[1722298054670,3.0118,3320.3,3319.5,3.0]
[1722298054829,3.01201,3320.1,3319.5,3.0]
[1722298055517,3.01201,3320.1,3319.2,3.01276]
[1722298055518,3.01228,3319.8,3319.3,3.0]
[1722298055755,3.01205,3320.0,3319.3,6.01267]
[1722298055956,3.01205,3320.0,3319.4,3.01256]
[1722298056315,3.01205,3320.0,3319.3,3.0]
[1722298056536,0.301201,3320.1,3319.3,3.0]
[1722298056537,3.01229,3319.8,3319.3,3.0]
[1722298056851,0.301229,3319.7,3319.2,3.0]
[1722298057060,3.01248,3319.6,3319.2,3.0]
[1722298057215,3.01248,3319.6,3319.0,3.0]
[1722298057883,3.01248,3319.6,3319.0,6.01294]
[1722298058552,3.01223,3319.8,3319.0,6.01294]
[1722298058726,3.01237,3319.7,3319.0,6.01294]
[1722298059327,3.01242,3319.6,3319.0,6.01294]
[1722298059511,3.01242,3319.6,3319.0,3.0]
[1722298059738,3.01242,3319.6,3318.8,8.29537]
[1722298059739,3.01242,3319.6,3318.9,3.0]
[1722298059937,3.01242,3319.6,3318.9,6.01303]
[1722298060342,3.01242,3319.6,3319.0,3.01294]
[1722298060661,3.01232,3319.7,3319.1,3.0]
[1722298060867,3.01223,3319.8,3319.1,3.0]